bitfinex/quotes_ETHUSD_20240816
["timestamp","ask_amount","ask_price","bid_price","bid_amount"]
[1723784628966,2.30719,2600.6,2600.1,35.0]
[1723784628967,2.30739,2600.4,2600.1,35.0]
[1723784630055,2.30739,2600.4,2599.7,2.30794]
[1723784630469,2.30739,2600.4,2599.8,35.0]
[1723784631122,2.30759,2600.2,2599.8,35.0]
[1723784631333,2.3076,2600.1,2599.8,35.0]
[1723784632432,2.3077,2600.0,2599.3,2.30828]
[1723784632961,2.30779,2599.9,2599.3,35.0]
[1723784633469,2.30797,2599.7,2599.3,35.0]
[1723784634066,2.30822,2599.4,2599.3,35.0]
[1723784635864,2.30813,2599.5,2599.3,35.0]
[1723784636630,2.30808,2599.6,2599.3,35.0]
[1723784636951,2.30814,2599.5,2599.3,35.0]
[1723784637155,3.011902,2599.5,2599.3,35.0]
[1723784638176,2.30822,2599.4,2599.3,35.0]
[1723784640276,4.61644,2599.4,2599.3,35.0]
[1723784642767,4.61644,2599.4,2598.6,2.3658]
[1723784642768,2.30845,2599.2,2598.6,2.3658]
[1723784643289,4.63705,2599.2,2598.7,35.0]
[1723784643656,2.30855,2599.1,2598.7,35.0]
[1723784644178,2.30868,2598.9,2598.7,35.0]
[1723784646239,2.30854,2599.1,2598.7,35.0]
[1723784646673,2.30859,2599.0,2598.7,35.0]
[1723784649589,0.3746957,2599.1,2598.7,35.0]
[1723784649742,0.3746957,2599.1,2598.4,2.3091]
[1723784650489,0.3746957,2599.1,2598.5,35.0]
[1723784651750,2.30859,2599.0,2598.5,35.0]
[1723784652152,3.746957,2599.2,2598.5,37.30901]
[1723784653294,2.30849,2599.1,2598.5,35.0]
[1723784653890,2.30858,2599.0,2598.5,35.0]
[1723784654667,6.055417,2599.2,2598.5,35.0]
[1723784654975,7.44,2599.4,2598.8,4.63635]
[1723784655185,7.44,2599.4,2599.1,2.3276]
[1723784655691,7.44,2599.4,2599.2,35.0]
[1723784655863,9.74789,2599.8,2599.2,35.0]
[1723784656199,2.51190448,2599.7,2599.2,35.0]
[1723784656402,0.20394448,2599.6,2599.2,35.0]
[1723784656560,2.51203448,2599.6,2599.2,35.0]
[1723784656760,0.20394448,2599.5,2599.2,35.0]
[1723784657799,0.20394448,2599.4,2599.2,35.0]
[1723784658165,0.20394448,2599.3,2599.2,35.0]
[1723784659761,0.20394448,2599.3,2598.9,2.4769]
[1723784659966,0.20394448,2599.2,2598.9,2.4769]
[1723784660193,0.20394448,2599.1,2599.0,35.0]
[1723784661364,0.20394448,2599.1,2598.7,1.0]
[1723784661365,2.51243448,2599.1,2598.7,1.0]
[1723784661568,2.99474737,2599.0,2598.7,1.0]
[1723784661884,0.20402292,2598.9,2598.8,35.0]
[1723784663513,0.20402292,2598.9,2598.7,1.0]
[1723784663715,0.20402292,2598.8,2598.7,1.0]
[1723784663870,0.20402292,2598.8,2598.7,36.0]
[1723784665669,0.20399169,2598.8,2598.7,36.0]
[1723784665970,2.30841,2599.2,2598.7,36.0]
[1723784666210,3.69814928,2599.0,2598.7,36.0]
[1723784666514,0.204005,2598.9,2598.7,36.0]
[1723784666669,3.69814928,2599.0,2598.7,36.0]
[1723784666670,0.204005,2598.8,2598.7,36.0]
[1723784667866,2.512755,2598.8,2598.7,1.0]
[1723784668072,0.82508743,2598.8,2598.7,1.0]
[1723784668370,0.82508743,2598.8,2598.7,36.0]
[1723784668569,0.204005,2598.8,2598.7,1.0]
[1723784669806,0.20400849,2598.8,2598.7,1.0]
[1723784672569,0.20400849,2598.8,2598.7,36.0]
[1723784675536,0.20400849,2598.8,2598.7,1.0]
[1723784676039,0.20400849,2598.8,2598.7,36.0]
[1723784677938,2.30858,2599.0,2598.7,36.0]
[1723784678118,1.0355551,2598.9,2598.7,36.0]
[1723784678325,0.20403385,2598.8,2598.7,36.0]
[1723784679198,0.20403385,2598.8,2598.7,1.0]
[1723784679629,0.20403385,2598.8,2598.7,36.0]
[1723784681313,0.20403376,2598.8,2598.7,36.0]
[1723784682230,0.20404421,2598.8,2598.7,36.0]
[1723784682529,0.20404421,2598.8,2598.7,1.0]
[1723784683104,0.20404421,2598.8,2598.7,36.0]
[1723784685750,0.01051624,2598.8,2598.7,36.0]
[1723784685965,3.69849141,2599.5,2599.2,2.30834]
[1723784686164,0.20388787,2599.4,2599.3,2.4681]
[1723784686315,3.91231619,2599.9,2599.3,2.4681]
[1723784686510,2.30797,2599.7,2599.3,2.4681]
[1723784686717,2.30814,2599.5,2598.9,2.4681]
[1723784687757,6.22051619,2599.7,2598.9,2.4681]
[1723784688053,3.91234619,2599.9,2599.2,4.77647]
[1723784688208,2.30781,2599.9,2599.2,4.77647]
[1723784688680,3.91234619,2599.9,2599.2,4.77647]
[1723784688971,4.73620748,2599.9,2599.2,4.77647]
[1723784689378,4.73620748,2599.9,2599.2,2.4681]
[1723784689538,2.30804,2599.7,2599.2,2.4681]
[1723784690091,2.30812,2599.6,2599.2,2.4681]
[1723784690251,2.30812,2599.6,2599.3,35.0]
[1723784690658,2.30804,2599.7,2599.3,35.0]
[1723784691140,2.30813,2599.5,2599.3,35.0]
[1723784691678,2.30805,2599.6,2599.3,35.0]
[1723784692632,3.12819474,2599.7,2599.3,35.0]
[1723784693250,2.30805,2599.6,2599.3,35.0]
[1723784693435,3.12819474,2599.7,2599.3,35.0]
[1723784695060,2.30822,2599.5,2599.3,35.0]
[1723784695263,2.85185847,2599.5,2599.3,35.0]
[1723784698178,2.85185847,2599.5,2599.0,2.2747]
[1723784698740,4.73268093,2599.7,2599.1,35.0]
[1723784698940,2.30799,2599.7,2599.1,35.0]
[1723784700493,27.21,2600.0,2599.3,2.4232]
[1723784700646,27.21,2600.0,2599.3,7.03968]
[1723784700988,7.44,2600.0,2599.3,7.03968]
[1723784701183,7.44,2600.0,2599.4,35.0]
[1723784701395,7.44,2600.0,2599.4,37.30821]
[1723784701898,7.44,2600.0,2599.5,2.367]
[1723784702586,9.8243,2600.0,2599.2,2.4985]
[1723784702743,3.282612,2599.9,2599.2,2.4985]
[1723784702939,2.30797,2599.7,2599.3,35.0]
[1723784703247,4.61601,2599.7,2599.3,35.0]
[1723784703481,4.61601,2599.7,2598.7,6.5038]
[1723784703482,3.02750082,2599.7,2599.0,2.3851]
[1723784703734,4.77576,2599.6,2598.7,1.0]
[1723784703893,1.60453619,2599.5,2598.7,1.0]
[1723784704084,1.60453619,2599.5,2598.7,36.0]
[1723784704285,2.30847,2599.2,2598.7,36.0]
[1723784705236,2.30826,2599.4,2598.7,36.0]
[1723784706532,2.30826,2599.4,2598.7,38.30884]
[1723784706735,2.4677,2599.6,2598.7,36.0]
[1723784706935,2.30864,2599.0,2598.7,36.0]
[1723784707158,2.30864,2599.0,2598.7,1.0]
[1723784707159,2.30875,2598.8,2598.7,1.0]
[1723784707860,2.30867,2598.9,2598.7,1.0]
[1723784708174,2.539534,2598.9,2598.7,1.0]
[1723784709616,2.30875,2598.8,2598.7,1.0]
[1723784710250,4.6175,2598.8,2598.7,1.0]
[1723784710578,6.9356,2598.8,2598.7,1.0]
[1723784710714,12.15835116,2598.8,2598.7,1.0]
[1723784710914,10.55381497,2598.8,2598.7,1.0]
[1723784711216,11.10381497,2598.8,2598.7,1.0]
[1723784711642,13.52186235,2598.8,2598.7,1.0]
[1723784712413,2.30954,2598.0,2597.5,35.0]
[1723784713216,2.30955,2597.9,2597.5,35.0]
[1723784714051,2.30955,2597.9,2597.4,2.4279]
[1723784714360,2.30938,2598.1,2597.4,2.4279]
[1723784714558,2.30947,2598.0,2597.5,35.0]
[1723784716746,2.2857,2598.2,2597.5,35.0]
[1723784716937,2.30982,2597.6,2597.5,35.0]
[1723784717276,2.30981,2597.7,2597.1,2.4712]
[1723784720945,4.78161,2597.7,2597.1,2.4712]
[1723784721151,2.30998,2597.5,2597.1,2.4712]
[1723784721465,2.540998,2597.4,2596.7,2.3439]
[1723784722462,0.230998,2597.4,2596.7,4.65452]
[1723784723278,2.540998,2597.4,2596.7,4.65452]
[1723784723475,0.230998,2597.4,2596.7,4.65452]
[1723784724199,7.44,2597.6,2596.9,2.2885]
[1723784724900,2.30999,2597.5,2596.9,2.2885]
[1723784725550,4.61999,2597.5,2596.9,2.2885]
[1723784726488,2.31001,2597.4,2596.9,2.2885]
[1723784726786,0.462,2597.3,2596.9,2.2885]
[1723784726989,7.44,2597.6,2596.9,4.59893]
[1723784727195,9.74982,2597.6,2596.9,4.59893]
[1723784727355,1.205957,2597.5,2596.9,4.59893]
[1723784728089,5.825857,2597.5,2596.9,2.2885]
[1723784728595,3.515867,2597.5,2596.9,2.2885]
[1723784728764,2.3101,2597.3,2596.9,2.2885]
[1723784728965,0.23101,2597.2,2596.7,2.315]
[1723784729875,3.515867,2597.5,2596.7,4.62561]
[1723784730084,3.515867,2597.5,2596.8,2.315]
[1723784730595,2.31007,2597.4,2596.8,2.315]
[1723784730908,0.5825937,2597.3,2596.8,2.315]
[1723784731920,0.10008323,2597.2,2597.1,4.75236]
[1723784732278,2.30961,2597.9,2597.1,4.75236]
[1723784732279,4.61924,2597.9,2597.1,4.75236]
[1723784732479,0.711384,2597.8,2597.1,4.75236]
[1723784732710,0.80640841,2597.8,2597.2,37.31016]
[1723784732915,0.09502441,2597.8,2597.3,2.31006]
[1723784733091,0.09502441,2597.8,2597.4,2.3591]
[1723784733292,2.30947,2598.0,2597.4,2.3591]
[1723784733627,2.30947,2598.0,2597.5,35.0]
[1723784733628,0.461888,2597.9,2597.5,35.0]
[1723784733923,0.55693491,2597.9,2597.5,35.0]
[1723784735010,2.86648491,2597.9,2597.5,35.0]
[1723784735405,2.30964,2597.8,2597.5,35.0]
[1723784735606,0.51761249,2597.7,2597.5,35.0]
[1723784736296,2.30955,2597.9,2597.5,35.0]
[1723784736677,0.09521422,2597.8,2597.5,35.0]
[1723784739187,0.09521422,2597.8,2597.1,2.3336]
[1723784739534,2.3098,2597.7,2597.1,2.3336]
[1723784739686,2.3098,2597.7,2597.2,35.0]
[1723784739888,0.09519172,2597.6,2597.2,35.0]
[1723784740091,2.78126242,2597.7,2597.2,35.0]
[1723784740486,0.09515526,2597.6,2597.2,35.0]
[1723784740950,2.78126242,2597.7,2597.2,35.0]
[1723784741234,0.09511986,2597.5,2597.2,35.0]
[1723784741536,2.78126242,2597.7,2597.2,35.0]
[1723784741683,0.27812624,2597.6,2597.2,35.0]
[1723784741886,2.6830761,2597.6,2597.2,35.0]
[1723784742088,2.58795624,2597.6,2597.2,35.0]
[1723784742331,0.09511986,2597.5,2597.2,35.0]
[1723784743447,9.74959,2597.9,2597.3,2.3336]
[1723784743588,0.09513596,2597.4,2597.3,2.3336]
[1723784743789,0.974959,2597.8,2597.3,2.3336]
[1723784744120,0.09505871,2597.4,2597.3,2.3336]
[1723784744301,2.30974,2597.7,2597.3,2.3336]
[1723784744302,2.30982,2597.6,2597.3,2.3336]
[1723784744633,2.30997,2597.5,2596.9,37.3227]
[1723784744806,2.40502871,2597.5,2596.9,37.3227]
[1723784744991,0.09505871,2597.5,2597.0,4.68065]
[1723784745196,0.09505871,2597.5,2597.1,2.3703]
[1723784745398,2.30974,2597.7,2597.1,2.3703]
[1723784745739,0.09507803,2597.4,2597.1,37.3703]
[1723784745889,0.3284699,2597.6,2597.1,37.3703]
[1723784746086,0.09507803,2597.3,2597.1,37.3703]
[1723784746299,0.3284699,2597.6,2597.1,37.3703]
[1723784746488,0.09506193,2597.2,2597.1,37.3703]
[1723784746722,0.3284699,2597.6,2597.1,37.3703]
[1723784749237,0.09515523,2598.1,2597.7,2.4833]
[1723784749426,2.30929,2598.2,2597.7,2.4833]
[1723784749629,2.40453523,2598.1,2597.7,2.4833]
[1723784749923,2.30938,2598.1,2597.7,2.4833]
[1723784750272,0.09520993,2598.0,2597.7,2.4833]
[1723784750844,0.230926,2598.2,2597.7,2.4833]
[1723784751063,0.09520993,2598.1,2597.9,2.4833]
[1723784751429,0.230903,2598.4,2597.9,2.4833]
[1723784751668,0.09523243,2598.3,2597.9,2.4833]
[1723784752237,0.09523243,2598.3,2598.0,35.0]
[1723784753173,0.09523243,2598.3,2597.9,2.4833]
[1723784753721,0.09523243,2598.3,2597.9,37.4833]
[1723784755334,0.58965997,2598.3,2597.9,37.4833]
[1723784755931,0.09523243,2598.3,2598.0,0.07697793]
[1723784756130,2.30888,2598.7,2598.2,2.3816]
[1723784756332,0.0953032,2598.6,2598.2,2.3816]
[1723784756526,0.0953032,2598.6,2598.2,37.3816]
[1723784756527,0.33572152,2598.6,2598.2,37.3816]
[1723784756731,2.54935832,2598.6,2598.2,37.3816]
[1723784756932,2.30914,2598.4,2598.2,35.0]
[1723784757179,2.30914,2598.4,2597.8,2.3816]
[1723784757180,0.47135332,2598.3,2597.8,2.3816]
[1723784757343,0.0953032,2598.2,2597.9,4.69109]
[1723784757542,0.0953032,2598.2,2597.8,2.30964]
[1723784757543,0.24041832,2598.6,2598.0,35.0]
[1723784757882,0.24041832,2598.6,2598.1,2.4666]
[1723784757883,0.09535787,2598.5,2598.1,2.4666]
[1723784758587,0.09535787,2598.5,2598.1,4.77597]
[1723784758729,3.90976019,2598.9,2598.1,4.77597]
[1723784758933,3.90976019,2598.9,2598.3,4.79363]
[1723784758934,0.09535787,2598.8,2598.3,4.79363]
[1723784759133,0.09535787,2598.8,2598.5,2.4845]
[1723784759379,2.3085,2599.1,2598.5,2.56145941]
[1723784759578,0.68783884,2599.0,2598.5,2.4845]
[1723784759878,0.095345,2599.0,2598.5,2.4845]
[1723784760678,2.403925,2599.0,2598.5,2.4845]
[1723784761144,2.403925,2599.0,2598.6,35.0]
[1723784763613,2.403925,2599.0,2598.1,2.3949]
[1723784763614,2.3089,2598.7,2598.1,2.3949]
[1723784763820,2.40122802,2598.6,2598.1,2.3949]
[1723784763986,2.40122802,2598.6,2598.2,35.0]
[1723784764191,2.30894,2598.6,2598.2,35.0]
[1723784764525,2.30905,2598.5,2598.1,2.3949]
[1723784764730,2.770834,2598.5,2598.1,2.3949]
[1723784764878,0.09230412,2598.4,2598.1,2.3949]
[1723784765524,2.40148412,2598.4,2598.1,2.3949]
[1723784765707,0.09230412,2598.4,2598.1,2.3949]
[1723784766212,2.40142412,2598.4,2598.1,2.3949]
[1723784766419,0.09230412,2598.4,2598.1,2.3949]
[1723784767501,2.40141412,2598.4,2598.1,2.3949]
[1723784767902,0.09230412,2598.4,2598.1,2.3949]
[1723784768424,2.40147412,2598.4,2597.8,2.3588]
[1723784768639,0.37861793,2598.4,2597.8,2.3588]
[1723784768941,2.68776793,2598.4,2597.8,2.3588]
[1723784769597,0.37861793,2598.4,2597.8,2.3588]
[1723784769934,2.3092,2598.3,2597.8,2.3588]
[1723784770234,0.361295,2598.2,2597.8,2.3588]
[1723784770396,2.670595,2598.2,2597.8,2.3588]
[1723784772030,2.30938,2598.1,2597.8,2.3588]
[1723784772528,0.09251321,2598.0,2597.5,2.3588]
[1723784772733,0.35032939,2598.0,2597.5,2.3588]
[1723784773302,2.30956,2597.9,2597.5,2.3588]
[1723784773831,0.09238138,2597.8,2597.5,2.3588]
[1723784775013,2.3094,2598.1,2597.5,2.3588]
[1723784775215,0.09218522,2598.0,2597.6,4.75956]
[1723784775539,4.61815,2598.5,2597.8,2.30963]
[1723784775724,4.61815,2598.5,2597.7,2.4498]
[1723784775725,0.09218522,2597.9,2597.7,2.4498]
[1723784775945,2.3093,2598.2,2597.7,2.4498]
[1723784776252,0.23093,2598.1,2597.2,5.50512]
[1723784776412,0.23093,2598.1,2597.3,2.3873]
[1723784776413,2.30971,2597.8,2597.3,2.3873]
[1723784776613,0.09226241,2597.7,2597.3,2.3873]
[1723784776836,2.771631,2597.8,2597.3,2.3873]
[1723784777148,0.09225919,2597.7,2597.0,2.31028]
[1723784777351,0.09225919,2597.7,2597.1,2.3873]
[1723784777522,0.60715821,2597.7,2597.1,2.3873]
[1723784777908,2.91696821,2597.7,2597.1,2.3873]
[1723784778332,0.60715821,2597.7,2597.1,2.3873]
[1723784779041,2.30984,2597.6,2597.1,2.3873]
[1723784779246,0.08909756,2597.5,2597.1,2.3873]
[1723784783047,2.39901756,2597.5,2597.1,2.3873]
[1723784783363,2.31007,2597.4,2596.9,2.4882]
[1723784783722,0.08894638,2597.3,2596.9,2.4882]
[1723784784854,2.30985,2597.6,2596.9,2.4882]
[1723784785058,0.08890777,2597.5,2596.9,2.4882]
[1723784785378,0.08890777,2597.5,2597.0,2.3103]
[1723784785530,0.08890777,2597.5,2597.2,2.4896]
[1723784786071,2.30975,2597.7,2597.2,2.4896]
[1723784786226,0.08885954,2597.6,2597.2,2.4896]
[1723784787512,0.08885954,2597.6,2597.0,2.31027]
[1723784790237,0.08885954,2597.6,2597.3,2.4181]
[1723784790542,7.44,2597.8,2597.3,2.49509389]
[1723784790696,0.08892066,2597.5,2597.4,2.31]
[1723784791015,7.44,2597.8,2597.5,2.30983]
[1723784791226,7.44,2597.8,2597.6,2.30975]
[1723784791422,7.44,2598.5,2597.7,2.2916]
[1723784791728,7.44,2598.5,2597.7,2.36858265]
[1723784792028,1.206945,2598.3,2597.7,4.67823265]
[1723784792349,7.44,2598.5,2597.8,2.38655105]
[1723784792632,4.63791,2598.8,2597.6,2.2916]
[1723784792785,4.63791,2598.8,2598.2,2.2916]
[1723784793999,2.3291,2598.8,2597.8,2.4931]
[1723784794336,2.30912,2598.4,2597.8,2.4931]
[1723784795714,2.30912,2598.4,2597.8,4.80273]
[1723784795917,4.61801,2598.6,2597.8,4.80273]
[1723784796123,2.3291,2598.8,2597.8,4.80272]
[1723784796124,4.6379,2598.8,2597.8,4.80272]
[1723784796293,4.6379,2598.8,2598.0,2.30938]
[1723784796492,4.6379,2598.8,2598.0,4.61878]
[1723784796693,0.46379,2598.7,2598.0,2.30938]
[1723784797030,0.46379,2598.7,2598.0,4.61877]
[1723784797227,0.46379,2598.7,2598.0,2.30938]
[1723784798239,2.77263,2598.7,2598.0,2.30938]
[1723784798938,0.08936448,2598.6,2598.0,2.30938]
[1723784800637,0.08936448,2598.6,2598.3,2.30919]
[1723784800844,2.01328818,2599.3,2598.5,2.30902]
[1723784800845,3.90944019,2599.3,2598.5,2.30902]
[1723784800995,2.3084,2599.2,2598.5,2.30902]
[1723784802395,2.3084,2599.2,2598.4,2.4304]
[1723784802396,2.30858,2599.0,2598.4,2.4304]
[1723784805034,2.3084,2599.2,2598.4,4.73949]
[1723784805256,2.30849,2599.1,2598.4,4.73949]
[1723784805422,2.30874,2598.9,2598.4,2.4304]
[1723784805753,2.3293,2599.0,2598.1,2.3362]
[1723784806055,2.30883,2598.8,2598.1,2.3362]
[1723784806214,0.230883,2598.7,2598.1,2.3362]
[1723784806810,2.4463,2598.6,2597.8,2.3217]
[1723784807059,2.30917,2598.4,2597.5,2.3099]
[1723784807368,2.677217,2598.3,2597.5,4.6316]
[1723784807911,2.30934,2598.2,2597.5,4.6316]
[1723784808522,4.986427,2598.3,2597.6,2.3098]
[1723784809049,2.677217,2598.3,2597.6,2.3098]
[1723784810625,2.30897,2598.6,2597.7,2.2753]
[1723784810943,7.44,2598.7,2598.1,4.58459]
[1723784811264,2.30868,2598.9,2598.2,2.30928]
[1723784811417,2.996928,2598.9,2598.1,6.89389]
[1723784812456,2.996928,2598.9,2598.2,2.30926]
[1723784813351,2.996928,2598.9,2598.1,4.58459]
[1723784813877,0.08936771,2598.8,2598.1,4.58459]
[1723784814760,0.08936771,2598.8,2598.2,2.30926]
[1723784814966,0.08936771,2598.8,2598.1,4.58459]
[1723784815120,2.39817771,2598.8,2598.1,4.58459]
[1723784815557,2.3875,2598.6,2597.9,2.3082]
[1723784815765,2.30902,2598.5,2597.9,2.3082]
[1723784815966,0.08949308,2598.5,2597.9,4.61775]
[1723784817981,0.08949308,2598.5,2597.9,2.3082]
[1723784818183,2.3097,2598.4,2597.5,2.2601]
[1723784818381,0.62203645,2598.5,2597.5,2.2601]
[1723784818382,2.30956,2597.9,2597.5,2.2601]
[1723784818741,0.08949308,2597.8,2597.5,2.2601]
[1723784819037,2.30981,2597.7,2596.9,2.31042]
[1723784819242,0.08942238,2597.6,2596.9,2.31042]
[1723784819456,0.08942238,2597.6,2596.9,4.62079]
[1723784819657,0.08942238,2597.6,2596.9,2.31037]
[1723784819855,0.08942238,2597.6,2597.0,2.31035]
[1723784820388,0.08942238,2597.6,2597.1,2.2601]
[1723784820543,0.08942238,2597.6,2597.2,2.31011]
[1723784820738,2.30958,2597.9,2597.2,2.31011]
[1723784820970,0.08942238,2597.5,2597.2,2.31011]
[1723784821186,2.30976,2597.7,2597.1,2.2601]
[1723784821384,0.08919725,2597.4,2597.1,2.2601]
[1723784821687,0.08919725,2597.3,2597.1,2.2601]
[1723784821888,2.30976,2597.7,2597.1,2.2601]
[1723784822042,0.0862165,2597.6,2597.1,2.2601]
[1723784822245,0.44640695,2597.6,2597.1,2.2601]
[1723784823184,0.0862165,2597.6,2597.1,2.2601]
[1723784823383,0.0862165,2597.6,2597.1,4.57035]
[1723784823980,0.0862165,2597.6,2597.2,2.31016]
[1723784824190,0.0862165,2597.6,2597.3,35.0]
[1723784824348,1.205928,2597.8,2597.3,35.0]
[1723784824761,0.0862165,2597.7,2597.3,35.0]
[1723784825163,1.205928,2597.8,2597.3,35.0]
[1723784825388,0.08618113,2597.6,2597.3,35.0]
[1723784825552,1.205928,2597.8,2597.3,35.0]
[1723784826087,0.08618113,2597.7,2597.3,35.0]
[1723784826382,1.205928,2597.8,2597.3,35.0]
[1723784826588,0.08618113,2597.6,2597.3,35.0]
[1723784826793,4.56476,2598.3,2597.4,2.4123]
[1723784826969,2.30934,2598.2,2597.4,2.4123]
[1723784827293,2.3955372,2598.2,2597.4,2.4123]
[1723784827506,2.3955372,2598.2,2597.5,35.0]
[1723784828826,2.3955372,2598.2,2597.5,37.3099]
[1723784828961,2.3955372,2598.2,2597.5,35.0]
[1723784829166,3.09155292,2598.2,2597.5,35.0]
[1723784829716,5.40092292,2598.2,2597.5,35.0]
[1723784829869,3.09155292,2598.2,2597.5,35.0]
[1723784830299,5.40092292,2598.2,2597.5,35.0]
[1723784830505,3.09155292,2598.2,2597.5,35.0]
[1723784830736,2.30956,2597.9,2597.5,35.0]
[1723784831005,2.3097,2597.8,2597.1,4.68026]
[1723784831358,0.08627763,2597.7,2597.2,35.0]
[1723784832203,0.08627763,2597.7,2597.2,37.31017]
[1723784832702,4.65089,2598.0,2597.2,37.31017]
[1723784832901,6.090912,2598.0,2597.2,37.31017]
[1723784833109,0.08607824,2597.9,2597.2,35.0]
[1723784833262,0.08607824,2597.9,2597.5,2.3114]
[1723784833609,0.08605894,2597.8,2597.5,2.3114]
[1723784833961,9.74933,2598.2,2597.6,35.0]
[1723784834208,0.08603964,2597.7,2597.6,35.0]
[1723784834408,11.190866,2598.2,2597.6,35.0]
[1723784834611,0.08603964,2597.7,2597.6,35.0]
[1723784834808,3.750866,2598.2,2597.6,35.0]
[1723784834998,0.08575852,2597.7,2597.6,35.0]
[1723784835196,2.30933,2598.2,2597.6,35.0]
[1723784835379,2.30887,2598.7,2598.0,2.3094]
[1723784835595,0.08575852,2598.1,2597.8,2.30958]
[1723784835801,2.30902,2598.5,2597.8,2.30958]
[1723784835968,0.08580355,2598.0,2597.9,35.0]
[1723784836169,2.30902,2598.5,2597.9,35.0]
[1723784836368,2.30902,2598.5,2597.9,37.30955]
[1723784836605,0.08583249,2598.4,2597.9,37.30955]
[1723784836806,2.30887,2598.7,2597.9,37.30955]
[1723784836997,5.315858,2598.7,2597.9,37.30955]
[1723784837304,0.08583249,2598.6,2597.9,37.30955]
[1723784838609,0.08583249,2598.6,2598.0,2.30943]
[1723784839318,0.08583249,2598.6,2598.1,35.0]
[1723784840422,0.08583249,2598.6,2598.2,2.356]
[1723784840615,0.08583249,2598.6,2598.2,4.66522]
[1723784840915,2.30869,2598.9,2598.2,4.67722]
[1723784841220,0.08593219,2598.8,2598.2,4.67722]
[1723784841416,0.08593219,2598.8,2598.2,2.368]
[1723784841577,2.39474219,2598.8,2598.2,0.012]
[1723784841777,2.63420441,2598.8,2598.2,0.012]
[1723784842417,0.32539441,2598.8,2598.3,2.4947]
[1723784842839,0.08593219,2598.8,2598.3,2.4947]
[1723784844079,0.08593219,2598.8,2598.4,35.0]
[1723784845927,0.08593219,2598.8,2598.2,2.32122]
[1723784846227,0.08593219,2598.8,2598.3,35.0]
[1723784850710,2.39470219,2598.8,2598.3,35.0]
[1723784850925,3.02606001,2598.8,2598.3,35.0]
[1723784852163,0.71729001,2598.8,2598.3,35.0]
[1723784852321,0.08593219,2598.8,2598.4,2.4306]
[1723784852524,4.65801,2599.1,2598.4,2.4306]
[1723784852837,0.08565672,2599.0,2598.4,2.4306]
[1723784853035,0.08565672,2599.0,2598.5,35.0]
[1723784853207,1.230092,2599.0,2598.5,35.0]
[1723784853409,0.08565672,2599.0,2598.5,35.0]
[1723784853965,2.39423672,2599.0,2598.5,35.0]
[1723784854391,0.08565672,2599.0,2598.5,35.0]
[1723784855468,2.39423672,2599.0,2598.5,35.0]
[1723784856257,0.08565672,2599.0,2598.5,35.0]
[1723784856456,0.486092,2599.0,2598.5,35.0]
[1723784859061,2.794682,2599.0,2598.5,35.0]
[1723784860382,0.08565672,2599.0,2598.5,37.30901]
[1723784860684,0.08565672,2599.0,2598.5,35.0]
[1723784860886,2.30849,2599.1,2598.5,35.0]
[1723784861094,19.77,2599.8,2598.8,2.2632]
[1723784861095,0.08569529,2598.9,2598.8,2.2632]
[1723784861585,0.08600398,2598.9,2598.8,4.57195]
[1723784861786,9.74818,2599.5,2598.8,39.57195]
[1723784861990,0.08600398,2598.9,2598.8,39.57195]
[1723784862189,9.74818,2599.5,2598.8,39.57195]
[1723784862587,0.08608758,2599.4,2598.8,39.57195]
[1723784864068,0.08608758,2599.4,2598.8,41.88064]
[1723784865193,0.08608758,2599.4,2598.8,41.87940802]
[1723784865395,0.08608758,2599.4,2598.8,39.57065802]
[1723784865558,0.32551034,2599.4,2598.8,39.57065802]
[1723784866093,0.32551034,2599.4,2598.6,2.30889]
[1723784866094,2.3084,2599.2,2598.6,2.30889]
[1723784866256,2.3084,2599.2,2598.4,2.30905]
[1723784866454,0.08618397,2599.1,2598.4,2.30905]
[1723784866694,0.08618397,2599.1,2598.5,37.30902]
[1723784866895,0.08618397,2599.1,2598.6,2.30893]
[1723784867257,4.78523,2599.3,2598.6,2.30893]
[1723784867492,0.08620326,2599.0,2598.6,2.30893]
[1723784867714,4.78523,2599.3,2598.6,2.30893]
[1723784867715,2.30833,2599.3,2598.6,2.30893]
[1723784867858,0.08620326,2598.9,2598.6,2.30893]
[1723784868054,2.30833,2599.3,2598.6,2.30893]
[1723784868260,0.230833,2599.2,2598.7,2.2606]
[1723784868576,0.3169784,2599.2,2598.7,37.2606]
[1723784869350,0.3169784,2599.2,2598.7,35.0]
[1723784869351,2.6253784,2599.2,2598.7,35.0]
[1723784869553,0.49337084,2599.1,2598.7,35.0]
[1723784869790,0.08617113,2599.0,2598.7,35.0]
[1723784870766,2.30833,2599.3,2598.7,35.0]
[1723784870986,0.08617113,2599.2,2598.7,35.0]
[1723784880989,2.39457113,2599.2,2598.7,35.0]
[1723784881269,0.08617113,2599.2,2598.7,35.0]
[1723784881391,0.55646124,2599.2,2598.7,35.0]
[1723784882942,0.55646124,2599.2,2598.8,2.318]
[1723784883148,0.08617113,2599.2,2598.8,2.318]
[1723784883309,2.30833,2599.3,2598.8,2.318]
[1723784883514,0.08616469,2599.2,2598.9,35.0]
[1723784883688,2.30833,2599.3,2598.9,35.0]
[1723784883893,0.47801629,2599.2,2598.9,35.0]
[1723784885925,0.08616469,2599.2,2598.9,35.0]
[1723784886125,2.30833,2599.3,2598.9,35.0]
[1723784886427,0.08613258,2599.2,2598.9,35.0]
[1723784886949,0.08613258,2599.1,2598.9,35.0]
[1723784887113,3.91851603,2599.3,2598.9,35.0]
[1723784887322,0.08613258,2599.2,2598.9,35.0]